Cogmind - Beta 13 @@@ ROGUE MODE // 2024.04.02 @ 12:21:15 // AFD2020/Player2 Player: Minty Result: Destroyed by S-10 Pest with Light Assault Rifle Performance ------------- Evolutions (0) 0 Regions Visited (4) 800 Robots Destroyed (22) 110 Value Destroyed (469) 469 Prototype IDs (23) 460 Alien Tech Used (0) 0 Bonus (428) 428 TOTAL SCORE: 2267 Bonus ------- High Alert Combat Kills 8 Follower Combat Kills 120 Aligned with FarCom 300 Cogmind --------- Core Integrity 0/250 Matter 289/300 Energy 190/250 System Corruption 0% Temperature Hot (280) Movement Rolling (190) Ox6 Location -9/Mines Parts ------- > --- POWER (1) -------- Ion Engine > --- PROPULSION (2) --- Compact Wheel > --- UTILITY (2) ------ Huge Storage Unit Weapon Shielding > --- WEAPON (2) ------- Guided Plasma Cannon Heavy Assault Rifle > --- INVENTORY (25) --- Aluminum Leg Heat Sink Improved Heat Sink Disposable Heat Sink Disposable Heat Sink Disposable Heat Sink Disposable Heat Sink High-capacity Storage Unit High-capacity Storage Unit Medium Matter Pod (100) High-capacity Matter Pod (125) Signal Interpreter Salvage Targeting Computer Salvage Targeting Computer Salvage Targeting Computer Salvage Targeting Computer Power Shielding Hacking Suite Medium Laser Assault Rifle Heavy Assault Rifle Datajack Mining Laser Peak State ------------ > --- POWER ------------ Ion Engine > --- PROPULSION ------- Compact Wheel > --- UTILITY ---------- Huge Storage Unit Weapon Shielding > --- WEAPON ----------- Guided Plasma Cannon Heavy Assault Rifle > --- INVENTORY -------- Aluminum Leg Heat Sink Improved Heat Sink Disposable Heat Sink Disposable Heat Sink Disposable Heat Sink Disposable Heat Sink High-capacity Storage Unit High-capacity Storage Unit Medium Matter Pod High-capacity Matter Pod Signal Interpreter Salvage Targeting Computer Salvage Targeting Computer Salvage Targeting Computer Salvage Targeting Computer Power Shielding Hacking Suite Medium Laser Assault Rifle Heavy Assault Rifle Datajack Mining Laser [Rating: 17] Favorites ----------- Power Ion Engine Engine Ion Engine Propulsion Compact Wheel Leg Aluminum Leg Wheel Compact Wheel Utility Transport Network Coupler Storage Huge Storage Unit Processor Transport Network Coupler Protection Weapon Shielding Weapon Heavy Assault Rifle Energy Gun Small Laser Energy Cannon Guided Plasma Cannon Ballistic Gun Heavy Assault Rifle Build | -11 -10 -10 -10 -9 ------- Run | Yrd Mat Min Exi Min Slots Evolved . | . . . . . Power . | . . . . . Propulsion . | . . . . . Utility . | . . . . . Weapon . | . . . . . Parts Attached 23 | . 9 11 . 3 Power 3 | . 1 1 . 1 Engine 3 | . 1 1 . 1 Core . | . . . . . Reactor . | . . . . . Propulsion 13 | . 4 9 . . Treads . | . . . . . Leg . | . . . . . Wheel 13 | . 4 9 . . Hover . | . . . . . Flight . | . . . . . Utility 4 | . 2 1 . 1 Device . | . . . . . Storage 2 | . 1 1 . . Processor 1 | . 1 . . . Hackware . | . . . . . Protection 1 | . . . . 1 Artifact . | . . . . . Weapon 3 | . 2 . . 1 Energy Gun . | . . . . . Energy Cannon 1 | . . . . 1 Ballistic Gun 2 | . 2 . . . Ballistic Cannon . | . . . . . Launcher . | . . . . . Special Weapon . | . . . . . Impact Weapon . | . . . . . Slashing Weapon . | . . . . . Piercing Weapon . | . . . . . Special Melee Weapon . | . . . . . Unidentified Prototypes . | . . . . . Parts Lost 3 | . . 1 . 2 Power 1 | . . . . 1 Propulsion 2 | . . 1 . 1 Utility . | . . . . . Weapon . | . . . . . Highest Loss Streak 1 | . . 1 . 1 To Critical Strikes . | . . . . . Average Slot Usage (%) 98 | . 97 99 100 98 Engine 14 | . 14 14 14 14 Leg 6 | . 16 . . . Wheel 21 | . 11 27 28 27 Storage 14 | . 14 14 14 14 Processor 12 | . 11 14 14 7 Energy Gun 1 | . 4 . . . Ballistic Gun 25 | . 22 28 28 27 Naked Turns . | . . . . . Heaviest Build 92 | 11 51 91 91 92 Greatest Support 32 | 20 26 32 32 32 Greatest Overweight (x) 5 | . 3 5 2 2 Average Overweight (x) 1 | . 1 2 2 2 Largest Inventory Capacity 25 | . 20 25 25 25 Average Capacity 22 | . 18 23 25 25 Most Carried 25 | . 20 25 25 25 Average Carried 18 | . 9 22 24 23 Final Capacity 25 | 8 20 25 25 25 Final Carried 25 | 6 20 24 25 23 Class Distribution -------------------- 100% | Mutant Dominant Class ---------------- Mutant | -10/Materials Mutant | -10/Mines Mutant | -10/Exiles Mutant | -9/Mines Resources | -11 -10 -10 -10 -9 ----------- Run | Yrd Mat Min Exi Min Matter Collected 1021 | 183 351 375 . 112 Remotely . | . . . . . Salvage Created 714 | . 163 418 . 133 Parts 44 | . 10 23 . 11 Haulers Intercepted 1 | . 1 . . . Recyclers Shooed 2 | . 1 1 . . Parts Field Recycled . | . . . . . Retrieved Matter . | . . . . . Parts Self-Destructed . | . . . . . Prevented . | . . . . . Kills | -11 -10 -10 -10 -9 ------- Run | Yrd Mat Min Exi Min Combat Hostiles Destroyed 15 | . 2 9 . 4 Guns 13 | . 2 9 . 2 Cannons 2 | . . . . 2 Classes Destroyed 7 | . 4 3 . . Worker 3 | . 1 2 . . Builder 2 | . . 1 . 1 Hauler 1 | . 1 . . . Operator 1 | . 1 . . . Swarmer 5 | . . 3 . 2 Grunt 8 | . 2 4 . 2 Sentry 2 | . . 2 . . Best Kill Streak 4 | . 2 4 . 2 Combat Bots Only 3 | . 1 3 . 2 Max Kills in Single Turn 1 | . 1 1 . 1 Gunslinging . | . . . . . Exploded . | . . . . . Melee . | . . . . . Uniques/NPCs Destroyed . | . . . . . Combat | -11 -10 -10 -10 -9 -------- Run | Yrd Mat Min Exi Min Hostile Shots Fired 83 | . 13 32 . 38 Missed 21 | . 2 12 . 7 Damage Taken 751 | . 138 262 . 351 Core 239 | . 11 77 . 151 Absorbed by Shields . | . . . . . Redirected to Shielding 20 | . . . . 20 Core Remaining (%) 100 | 100 . . . . Volleys Fired 74 | . 29 28 . 17 Largest 2 | . 2 2 . 2 Hottest 120 | . 60 46 . 120 Shots Fired 144 | . 58 56 . 30 Gun 140 | . 58 56 . 26 Cannon 4 | . . . . 4 Launcher . | . . . . . Special . | . . . . . Kinetic 132 | . 50 56 . 26 Thermal 12 | . 8 . . 4 Explosive . | . . . . . Electromagnetic . | . . . . . Robot Hit Streak 14 | . 5 14 . 4 Robot Miss Streak 5 | . 5 3 . 2 Penetration Max . | . . . . . Secondary Targets 2 | . . 1 . 1 Max Gunslinging Chain 1 | . . 1 . 1 Shots Hit Robots 83 | . 29 36 . 18 Core Hits 34 | . 9 19 . 6 Critical Kills 1 | . . 1 . . Critical Parts Destroyed 2 | . . 1 . 1 Critical Strikes 3 | . . 2 . 1 Destroy 3 | . . 2 . 1 Melee Attacks . | . . . . . Impact . | . . . . . Slashing . | . . . . . Piercing . | . . . . . Sneak Attacks . | . . . . . Combat Hostiles . | . . . . . Follow-up Attacks . | . . . . . Damage Inflicted 1339 | . 422 569 . 348 Guns 1180 | . 417 569 . 194 Cannons 154 | . . . . 154 Explosions . | . . . . . Melee . | . . . . . Ramming 5 | . 5 . . . Kinetic 1135 | . 372 569 . 194 Thermal 199 | . 45 . . 154 Explosive . | . . . . . Electromagnetic . | . . . . . Impact . | . . . . . Slashing . | . . . . . Piercing . | . . . . . Highest Corruption . | . . . . . Average Corruption . | . . . . . Corruption Purged . | . . . . . Corruption Blocked . | . . . . . Overload Shots . | . . . . . Overflow Damage 36 | . . . . 36 Projectiles 36 | . . . . 36 Explosions . | . . . . . Melee . | . . . . . Knockbacks . | . . . . . Impact . | . . . . . Kinetic . | . . . . . Secondary . | . . . . . Self-Inflicted Damage . | . . . . . Shots . | . . . . . Rammed . | . . . . . Targets Rammed 1 | . 1 . . . Kicked 1 | . 1 . . . Crushed . | . . . . . Highest Temperature 280 | . 12 22 . 280 Average Temperature 25 | . 7 7 . 49 Received Heat Transfer 363 | . 66 141 . 156 Siege Activations . | . . . . . Robots Corrupted . | . . . . . Combat Hostiles . | . . . . . Parts Fried . | . . . . . Impact Corruptions . | . . . . . Robots Melted . | . . . . . Combat Hostiles . | . . . . . Parts Melted 1 | . . . . 1 Heat Transferred 420 | . 100 . . 320 Parts Sabotaged . | . . . . . Parts Stolen . | . . . . . Parts Stripped . | . . . . . Power Chain Reactions . | . . . . . Alert | -11 -10 -10 -10 -9 ------- Run | Yrd Mat Min Exi Min Peak Influence 430 | . 135 430 . 133 Initial 52 | . . 52 . . Average 136 | . 73 278 . 48 Maximum Alert Level 2 | . . 2 . . Low Security (%) 75 | . 100 22 . 100 Level 1 19 | . . 59 . . Level 2 5 | . . 17 . . Level 3 . | . . . . . Level 4 . | . . . . . Level 5 . | . . . . . High Security . | . . . . . Max Security . | . . . . . Squads Dispatched 2 | . 2 . . . Investigation . | . . . . . Extermination . | . . . . . Reinforcement 2 | . 2 . . . Assault . | . . . . . Garrison . | . . . . . Intercept . | . . . . . Searches Triggered . | . . . . . Construction Impeded . | . . . . . Haulers Reinforced . | . . . . . Active Scanning Responses . | . . . . . Cargo Convoy Interrupts . | . . . . . Stealth | -11 -10 -10 -10 -9 --------- Run | Yrd Mat Min Exi Min Distress Signals 1 | . 1 . . . Communications Jammed . | . . . . . Distress Signals . | . . . . . Times Spotted 29 | . 10 12 . 7 Peak Tracking Total 4 | . 2 2 . 4 Tactical Retreats 1 | . . 1 . . Traps | -11 -10 -10 -10 -9 ------- Run | Yrd Mat Min Exi Min Traps Triggered . | . . . . . Indirectly . | . . . . . Trap Hack Attempts . | . . . . . Triggered . | . . . . . Disarmed . | . . . . . Reprogrammed . | . . . . . Reused . | . . . . . Traps Extracted . | . . . . . Installed . | . . . . . Triggered . | . . . . . Machines | -11 -10 -10 -10 -9 ---------- Run | Yrd Mat Min Exi Min Machines Disabled 1 | . 1 . . . Max in Single Turn 1 | . 1 . . . Machines Repaired . | . . . . . Machines Dismantled . | . . . . . Machines Sabotaged . | . . . . . Overloaded Fab Kills . | . . . . . Hacking | -11 -10 -10 -10 -9 --------- Run | Yrd Mat Min Exi Min Machines Accessed 4 | . 2 . 2 . Terminals 2 | . 2 . . . Fabricators . | . . . . . Repair Stations . | . . . . . Recycling Units . | . . . . . Scanalyzers . | . . . . . Garrison Access . | . . . . . Total Hacks 9 | . 7 . 2 . Successful 5 | . 3 . 2 . Failed 4 | . 4 . . . Catastrophic 1 | . 1 . . . Database Lockouts . | . . . . . Manual 5 | . 4 . 1 . Terminals 7 | . 7 . . . Fabricators . | . . . . . Repair Stations . | . . . . . Recycling Units . | . . . . . Scanalyzers . | . . . . . Garrison Access . | . . . . . Terminal Hacks 3 | . 1 . 2 . Record 1 | . . . 1 . Registered Components 1 | . 1 . . . Derelict Proto ID Bank 1 | . . . 1 . Fabricator Hacks . | . . . . . Repair Station Hacks . | . . . . . Recycling Unit Hacks . | . . . . . Scanalyzer . | . . . . . Garrison Access Hacks . | . . . . . Unauthorized Hacks 2 | . 2 . . . Terminals 2 | . 2 . . . Track 1 | . 1 . . . Botnet 1 | . 1 . . . Fabricators . | . . . . . Repair Stations . | . . . . . Recycling Units . | . . . . . Scanalyzers . | . . . . . Garrison Access . | . . . . . Data Cores Recovered . | . . . . . Used . | . . . . . Hacking Detections 2 | . 2 . . . Full Trace Events 1 | . 1 . . . Feedback Events . | . . . . . Feedback Blocked . | . . . . . Robot Schematics Acquired . | . . . . . Robots Built . | . . . . . Authchips . | . . . . . Time . | . . . . . Total Robot Build Rating . | . . . . . Part Schematics Acquired . | . . . . . Parts Built . | . . . . . Authchips . | . . . . . Time . | . . . . . Total Part Build Rating . | . . . . . Parts Repaired . | . . . . . Time . | . . . . . Parts Recycled . | . . . . . Recycled Matter . | . . . . . Retrieved Matter . | . . . . . Retrieved Components . | . . . . . Parts Scanalyzed . | . . . . . Part Schematics Acquired . | . . . . . Parts Damaged . | . . . . . Bothacking | -11 -10 -10 -10 -9 ------------ Run | Yrd Mat Min Exi Min Used RIF Installer . | . . . . . Robots Hacked . | . . . . . Non-combat . | . . . . . Combat . | . . . . . Robot Hacks Applied . | . . . . . Relay Couplers Released . | . . . . . Fabnet Peak Effective % . | . . . . . Robots Rewired . | . . . . . Allies Hacked . | . . . . . Hacks Repelled . | . . . . . Allies | -11 -10 -10 -10 -9 -------- Run | Yrd Mat Min Exi Min Total Allies 1 | . 1 . . . Largest Group 1 | . 1 1 1 1 Highest-Rated Group 62 | . 60 62 62 62 Highest-Rated Ally 62 | . 60 62 62 62 Total Orders . | . . . . . Ally Attacks 16 | . 2 9 . 5 Total Damage 472 | . 151 251 . 70 Kills 10 | . 7 2 . 1 Allies Corrupted . | . . . . . Allies Melted . | . . . . . Intel | -11 -10 -10 -10 -9 ------- Run | Yrd Mat Min Exi Min Robot Analysis Total . | . . . . . Derelict Logs Recovered . | . . . . . Drone Launches . | . . . . . Drone Recoveries . | . . . . . Exploration | -11 -10 -10 -10 -9 ------------- Run | Yrd Mat Min Exi Min Turns Passed 1791 | . 694 392 570 135 Spaces Moved 873 | 1 336 207 264 65 Core . | . . . . . Treads . | . . . . . Legs 165 | 1 164 . . . Wheels 708 | . 172 207 264 65 Hover . | . . . . . Flight . | . . . . . Fastest Speed 105 | 120 105 105 130 130 Average Speed 139 | 120 155 128 130 130 Slowest Speed 260 | 120 260 175 130 130 Overloaded Moves . | . . . . . Propulsion Burnouts . | . . . . . Robots Hopped . | . . . . . Cave-ins Triggered . | . . . . . Exploration Rate (%) 28 | 2 31 20 61 27 Regions Visited 4 Branch Regions 3 Pre-discovered Areas 1 | . . . 1 . Known Exits Taken . | . . . . . Unknown Exits Taken 4 | 1 1 1 1 . Scrap Searched 2 | . . 2 . . Spaces Dug . | . . . . . Terrain Destroyed . | . . . . . Melee . | . . . . . Projectile . | . . . . . AOE . | . . . . . Terrain Rammed . | . . . . . Walls Destroyed . | . . . . . Machines Disabled . | . . . . . Actions | -11 -10 -10 -10 -9 --------- Run | Yrd Mat Min Exi Min Total 1307 | . 451 279 492 85 Wait 290 | . 50 16 224 . Move 869 | . 335 206 263 65 Hop . | . . . . . Pick Up 26 | . 14 9 3 . Fast Attach 8 | . 6 2 . . Attach 2 | . . 1 . 1 Detach 5 | . 5 . . . Swap 13 | . 3 8 . 2 Drop 19 | . 8 9 2 . Fire 74 | . 29 28 . 17 Melee . | . . . . . Ram . | . . . . . Kick 1 | . 1 . . . Crush . | . . . . . Escape Stasis . | . . . . . Rewire . | . . . . . Trap . | . . . . . Miscellaneous . | . . . . . Route ------- -11/Scrapyard -10/Materials -10/Mines -10/Exiles -9/Mines History --------- Turn | Location | Event 1 | -11/Scrapyard | Discovered new exit (range 0) 1 | -11/Scrapyard | Entered Materials 235 | -10/Materials | Discovered new exit (range 10) 300 | -10/Materials | Build established: Mutant 695 | -10/Materials | Entered Mines 883 | -10/Mines | Deemed a non-threat by the Exiles lab entrance 883 | -10/Mines | Discovered new exit (range 5) 937 | -10/Mines | Joined a pair of Derelicts in attacking an 0b10 outpost 1087 | -10/Mines | Entered Exiles 1123 | -10/Exiles | Met 8R-AWN 1142 | -10/Exiles | Met EX-HEX 1176 | -10/Exiles | Met EX-BIN 1194 | -10/Exiles | Aligned with FarCom system 1195 | -10/Exiles | Given EX-Vault access code 1227 | -10/Exiles | Opened EX-Vault 1275 | -10/Exiles | Found Gui. Plasma Cannon 1365 | -10/Exiles | Found Superbattery 1395 | -10/Exiles | Warned to stay clear of 0b10 Research branches 1501 | -10/Exiles | Met EX-DEC 1509 | -10/Exiles | Learned location of Zion (-6) 1549 | -10/Exiles | Discovered new exit (range 10) 1657 | -10/Exiles | Left Exiles lab with Gui. Plasma Cannon 1657 | -10/Exiles | Entered Mines 1705 | -9/Mines | Core integrity fell below 50% 1730 | -9/Mines | Core integrity fell below 20% 1792 | -9/Mines | Destroyed by S-10 Pest with Light Assault Rifle Last Messages --------------- 01721_ Discarded Transport Network Coupler. 01729_ Critical hit (Burn: +37). 01730_ G-47 Trooper destroyed. 01739_ R-06 Scavenger collects Heat Sink. 01741_ Acquired 46 matter. 01742_ Acquired 45 matter. 01744_ R-06 Scavenger collects Ion Engine. Player 2: "Core Shielding FTW!" 01747_ R-06 Scavenger collects Sml. Laser. 01751_ R-06 Scavenger collects Aluminum Leg. 01759_ Player 2 drops Sml. Laser. 01759_ Player 2 acquires Particle Gun. 01762_ U-05 Engineer destroyed. 01765_ Acquired 21 matter. 01782_ Com. Wheel destroyed. 01785_ Destroyed Flight Unit. 01787_ S-10 Pest destroyed. 01789_ Flight Unit melted. 01789_ S-10 Pest destroyed. 01791_ Destroyed Flight Unit. Map ----- +----------------------------------------------------+ | ????????????????????# | | ????????????????????# | | ????????????????????## ### ## | | ?????????????????????# #?## #### | | ?????????????????????#[ ## ##??####??# | | ????????????????????## #######????????? | | ????????????????????# ##??????????????? | | ????????????????????# % #??????????????? | | ????????????????????# ##?????????????? | | ????????????????????# #?????????????? | | ????????????????????## #?????????????# # | | ?????????????????????## ##?????????????# ? | | ??????????????????????# #??????????????? ? | | ??????????????????????# ##??????????????? ? | | ??????????????????????# ##???????????????? | | ??????????????????????# #???????????????? | | ??????????????????????# #???????????????? | | ??????????????????????## |##???????????????? | | ???????????????????????##*#????????????????? | | ?????????????????######## #????????????????? | | ????????????# #### =!#????????????????? | | ????????????# #######????????????????? | | ????????????###### #??????????????????????? | | ?????????????????# #??????????????????????? | | ?????????????????# ##?????????????????????? | | ?????????????????# @ #?????????????????????? | | ??????????????# #????????????????????? | | ?????????????# #???????????????????? | | ?????????????# #???????????????????? | | ?????????????## ##???????????????????? | | ??????????????### ##????????????????????? | | ????????????????## s ?????????????????????? | | ?????????????????##* #?????????????????????? | | ??????????????????#s=#?????????????????????? | | ??????????????????? #?????????????????????? | | ??????????????????? ?????????????????????? | | ??????????????????? ?????????????????????? | | ??????????????????? ?????????????????????? | | ??????????????????? %?????????????????????? | | ???????????????????# *?????????????????????? | | ???????????????????? ?????????????????????? | | ???????????????????????????????????????????? | | ???????????????????????????????????????????? | | ???????????????????????????????????????????? | | ???????????????????????????????????????????? | | ???????????????????????????????????????????? | | ???????????????????????????????????????????? | | ???????????????????????????????????????????? | | ???????????????????????????????????????????? | | ???????????????????????????????????????????? | +----------------------------------------------------+ Best States ------------- Heat Dissipation 25 Energy Generation 10 Energy Capacity 250 Matter Stores 300 Matter Capacity 300 Sight Range 16 Terrain Scan Density 10 Weapon Shielding 33 Evasion (%) 55 Item Schematics ----------------- None Robot Schematics ------------------ None Fabricated ------------ Nothing Alien Tech Used ----------------- None Achievements -------------- None Challenges ------------ None Player 2 | -11 -10 -10 -10 -9 ---------- Run | Yrd Mat Min Exi Min Slots Evolved . | . . . . . Power . | . . . . . Propulsion . | . . . . . Utility . | . . . . . Weapon . | . . . . . Parts Attached 10 | . 9 1 . . Parts Lost . | . . . . . Damage Taken 56 | . . 56 . . Core 12 | . . 12 . . Player 2/Cogmind (%) 4 | . . 13 . . Absorbed by Shields . | . . . . . Damage Inflicted 472 | . 151 251 . 70 Player 2/Cogmind (%) 26 | . 26 30 . 16 Combat Hostiles Destroyed 4 | . 1 2 . 1 Player 2/Cogmind (%) 21 | . 33 18 . 20 Game ------ Seed ArmageddonPointyProtection Manual? 0 Play Time 00:07:02 Cumulative 705.4 hours Start 2024.04.02 @ 12:15:01 End 2024.04.02 @ 12:21:15 Sessions 1 Manual Loads 0 Difficulty Rogue Special Mode AFD2020/Player2 Game No. 744 Rogue 469 Adventurer 123 Explorer 152 Win Type - Total 26 Types 20/0/4/1/0/0/0/1/0 Lore% 83 Gallery% 91 Achievement% 76 Wizard Run 0 Options --------- Layout 0 ASCII 0 Keyboard 1 Movement Numpad Keybinds 0 Fullscreen 2 Font 18/Terminus Map View 76x50 Zoom Use 1% Tactical HUD 1 Map Filters NONE Filters NONE Steam 1 RUN: d2bb1ecf-4027-4915-8b45-c73b3d69ecb2